bitfinex-derivatives/quotes_ETHF0:USTF0_20260226
["timestamp","ask_amount","ask_price","bid_price","bid_amount"]
[1772122145590,0.00534351,2026.8,2025.8,0.57825543]
[1772122145789,0.55927802,2027.3,2026.0,0.57825543]
[1772122146006,0.55927802,2027.3,2025.9,0.24679]
[1772122146007,0.55927802,2027.3,2026.2,0.57825543]
[1772122146199,1.84377279,2027.6,2026.2,0.57825543]
[1772122146200,0.55927802,2027.1,2026.2,0.57825543]
[1772122146405,0.55927802,2026.9,2026.0,0.57825543]
[1772122146907,0.55927802,2026.7,2025.8,7.03825543]
[1772122147706,0.55927802,2026.7,2025.9,0.57825543]
[1772122149104,0.55927802,2026.7,2025.6,0.57825543]
[1772122149105,0.24671,2026.6,2025.6,0.57825543]
[1772122149306,0.55927802,2026.1,2025.2,7.03825543]
[1772122149707,0.53257171,2025.9,2025.0,0.56027135]
[1772122150211,0.53257171,2025.7,2024.8,0.56405917]
[1772122150901,0.53257171,2025.4,2024.5,0.56027135]
[1772122152198,0.53716854,2025.4,2024.5,0.56659254]
[1772122153008,0.00459683,2025.4,2024.5,0.56659254]
[1772122156910,0.53257171,2025.9,2024.5,0.56659254]
[1772122157113,0.53257171,2025.8,2024.7,0.56027135]
[1772122157308,0.53257171,2025.6,2024.7,0.56027135]
[1772122157513,0.24682,2025.7,2024.5,0.00632119]
[1772122157514,0.53257171,2025.2,2024.5,0.00632119]
[1772122157808,0.53257171,2025.2,2024.5,0.56659254]
[1772122158009,0.53257171,2025.7,2024.5,0.56659254]
[1772122158205,0.00475889,2025.2,2024.5,0.56659254]
[1772122159608,0.5373306,2025.2,2024.5,0.56659254]
[1772122160711,0.00475889,2025.2,2024.5,0.56659254]
[1772122161516,0.5373306,2025.2,2024.5,0.56659254]
[1772122161916,0.00475889,2025.2,2024.5,0.56659254]
[1772122162912,0.5373306,2025.2,2024.5,0.56659254]
[1772122163319,0.5373306,2025.2,2023.6,10.47676981]
[1772122163320,0.5373306,2025.2,2024.3,0.56027135]
[1772122164718,0.5373306,2025.2,2024.3,0.56555754]
[1772122165519,0.00475889,2025.2,2024.3,0.56555754]
[1772122167222,0.5373306,2025.2,2024.3,0.56555754]
[1772122168121,0.00475889,2025.2,2024.3,0.56555754]
[1772122168313,0.00475889,2025.2,2024.5,0.56027135]
[1772122168621,0.2468,2025.9,2024.7,0.56027135]
[1772122168622,0.77937171,2025.9,2024.7,0.56027135]
[1772122168828,0.53257171,2025.6,2024.7,0.56027135]
[1772122169624,0.53257171,2025.4,2024.7,0.56027135]
[1772122169825,0.53257171,2025.4,2024.4,0.56027135]
[1772122172022,0.53257171,2025.2,2024.4,0.56027135]
[1772122172718,0.53257171,2025.0,2024.3,0.00528619]
[1772122174020,0.53257171,2025.2,2024.3,0.56555754]
[1772122174419,0.25054043,2025.6,2024.3,0.56555754]
[1772122174420,0.53257171,2025.4,2024.3,0.56555754]
[1772122175619,0.00370043,2025.6,2024.3,0.56555754]
[1772122175823,0.53627214,2025.6,2024.3,0.56555754]
[1772122176019,0.53627214,2025.6,2024.4,0.24697]
[1772122176224,0.53627214,2025.6,2024.5,0.56027135]
[1772122176726,0.00370043,2025.6,2024.5,0.56027135]
[1772122176927,0.53257171,2024.9,2024.3,0.00528619]
[1772122177233,0.53257171,2024.9,2023.4,10.47680981]
[1772122177234,0.53257171,2024.9,2023.5,0.56027135]
[1772122177530,0.53257171,2025.4,2023.9,0.56027135]
[1772122178321,0.53257171,2025.4,2024.1,0.55288331]
[1772122178522,0.57327779,2025.6,2024.5,0.55288331]
[1772122179036,0.56957736,2025.5,2024.5,0.55288331]
[1772122179623,0.56059439,2025.3,2024.0,0.55970743]
[1772122179923,0.56059439,2025.1,2024.0,0.55970743]
[1772122182139,0.56059439,2025.0,2024.0,0.55970743]
[1772122182532,0.56059439,2025.0,2023.9,0.00582777]
[1772122182533,0.56059439,2024.8,2023.9,0.00582777]
[1772122183041,0.56059439,2024.8,2023.9,0.5655352]
[1772122183940,6.07335,2025.2,2023.9,0.5655352]
[1772122183941,0.56059439,2024.6,2023.9,0.5655352]
[1772122184239,0.56059439,2024.6,2023.9,0.00582777]
[1772122185739,0.56059439,2024.6,2023.9,0.5655352]
[1772122188342,0.56059439,2025.1,2023.9,0.5655352]
[1772122188634,0.56059439,2025.1,2024.3,0.55970743]
[1772122189038,0.56059439,2025.1,2024.0,0.55970743]
[1772122189233,0.24687,2025.3,2023.9,0.00582777]
[1772122189234,0.56059439,2024.9,2023.9,0.00582777]
[1772122190040,0.56059439,2024.7,2023.9,0.00582777]
[1772122190231,0.56059439,2024.7,2023.9,0.5655352]
[1772122192142,0.56059439,2025.2,2023.9,0.5655352]
[1772122192338,0.56059439,2025.0,2023.9,0.5655352]
[1772122201336,0.55763553,2024.8,2023.9,0.00582777]
[1772122201533,0.55763553,2024.3,2023.6,10.22970981]
[1772122201731,0.55763553,2024.5,2023.6,10.78941724]
[1772122201939,0.55763553,2024.5,2023.6,0.55970743]
[1772122202335,0.55763553,2024.3,2023.6,0.55970743]
[1772122202542,0.55763553,2024.3,2023.6,0.56375695]
[1772122202743,0.55763553,2024.8,2023.6,0.56375695]
[1772122202944,0.55763553,2024.6,2023.6,0.56375695]
[1772122203143,0.56059439,2024.4,2023.6,0.56375695]
[1772122203642,0.56059439,2024.4,2023.6,0.00404952]
[1772122204446,0.56059439,2024.4,2023.6,0.56375695]
[1772122204739,0.56059439,2024.6,2023.6,0.56375695]
[1772122205045,0.56059439,2024.8,2023.8,0.55970743]
[1772122206338,0.55988696,2024.4,2023.6,0.56375695]
[1772122206538,0.4267133,2024.7,2023.6,0.56375695]
[1772122206539,0.55988696,2024.2,2023.6,0.00404952]
[1772122206736,0.55988696,2024.0,2023.6,0.00404952]
[1772122206938,0.56503833,2024.0,2023.2,0.55970743]
[1772122207341,0.55188059,2023.8,2022.6,0.55970743]
[1772122207847,0.55188059,2023.8,2022.6,0.56586982]
[1772122208044,0.24704,2023.9,2022.6,0.56586982]
[1772122208045,0.55188059,2023.6,2022.6,0.56586982]
[1772122208539,0.00515137,2024.0,2022.6,0.56586982]
[1772122208746,0.55188059,2023.8,2022.6,0.56586982]
[1772122209137,0.549018,2023.7,2022.6,0.56586982]
[1772122210443,0.54942866,2023.3,2022.6,0.00616239]
[1772122210648,0.54942866,2023.3,2022.6,0.58122248]
[1772122211349,0.54942866,2023.3,2022.6,0.00616239]
[1772122212245,0.55591502,2023.1,2021.5,0.57506009]
[1772122212440,0.55591502,2023.0,2021.5,0.57506009]
[1772122213349,0.55591502,2023.0,2021.5,0.58096027]
[1772122213749,0.54578385,2022.9,2021.5,0.58096027]
[1772122214747,0.54578385,2022.7,2021.5,0.58096027]
[1772122215243,0.54925292,2022.5,2021.5,0.58096027]
[1772122215450,0.55477392,2022.5,2021.5,0.58096027]
[1772122216649,0.005521,2022.5,2021.5,0.82828027]
[1772122216850,0.005521,2022.5,2021.6,0.57506009]
[1772122217150,0.005521,2022.5,2021.5,0.25322018]
[1772122217151,0.54719475,2023.0,2021.8,0.57506009]
[1772122217846,0.24716,2022.9,2021.8,0.57506009]
[1772122218050,0.54719475,2022.6,2021.8,0.57506009]
[1772122218647,0.54719475,2022.8,2021.8,0.57506009]
[1772122219551,0.79436475,2022.8,2021.8,0.57506009]
[1772122219751,0.54811569,2022.7,2021.8,0.57506009]
[1772122220660,0.54811569,2022.5,2021.8,0.57506009]
[1772122220953,1.85218548,2022.9,2021.8,0.57506009]
[1772122220954,0.54811569,2022.8,2021.8,0.57506009]
[1772122222056,0.53744664,2022.7,2021.8,0.57506009]
[1772122223455,0.00363607,2022.9,2022.0,0.57506009]
[1772122223654,0.54086776,2022.9,2022.2,0.57506009]
[1772122223953,0.54086776,2022.9,2021.5,0.00590018]
[1772122224155,0.54086776,2022.9,2021.6,0.57506009]
[1772122224453,0.53723169,2022.3,2021.5,0.00590018]
[1772122224847,0.24724,2022.2,2021.5,0.00590018]
[1772122225058,0.24724,2022.2,2020.5,0.57506009]
[1772122225059,0.53723169,2021.9,2020.5,0.57506009]
[1772122225653,0.54130414,2021.6,2020.1,1.84854941]
[1772122225853,12.167,2021.8,2020.0,0.57506009]
[1772122225854,0.54130414,2021.4,2020.0,0.57506009]
[1772122226057,0.00576673,2021.4,2020.3,2.4236095]
[1772122226353,0.00576673,2021.4,2020.4,0.57506009]
[1772122227659,0.54844839,2022.4,2020.7,0.57506009]
[1772122227861,0.54844839,2022.3,2020.9,0.57506009]
[1772122228658,0.55404453,2022.3,2020.9,0.57506009]
[1772122229761,0.54297823,2022.1,2020.9,0.57506009]
[1772122231961,0.54345648,2021.9,2020.9,0.57506009]
[1772122232261,6.08234,2022.2,2020.0,1.85306413]
[1772122232262,0.54345648,2021.4,2020.1,0.57506009]
[1772122234864,0.54600149,2021.6,2020.3,0.57506009]
[1772122235662,0.55180963,2021.3,2020.1,0.57506009]
[1772122235960,0.55180963,2021.0,2020.0,0.00451472]
[1772122236366,0.55180963,2020.8,2020.0,0.57957481]
[1772122236569,0.00367312,2020.8,2020.0,0.57957481]
[1772122238464,0.54752031,2021.3,2020.2,0.53828679]
[1772122238670,0.54752031,2021.8,2020.2,0.53828679]
[1772122239271,0.54752031,2021.7,2020.4,0.53828679]
[1772122239566,0.55099187,2021.7,2020.4,0.53828679]
[1772122239870,0.00347156,2021.7,2020.6,0.53070572]
[1772122241164,0.00347156,2021.7,2020.8,0.53070572]
[1772122241561,0.00347156,2021.7,2021.0,0.53070572]
[1772122242373,0.57597387,2021.7,2020.8,0.53070572]
[1772122247181,0.57250231,2021.6,2020.8,0.53070572]
[1772122248581,0.00347156,2021.7,2020.8,0.53070572]
[1772122248884,0.57597387,2021.7,2020.8,0.53070572]
[1772122250181,0.00347156,2021.7,2021.1,0.53070572]
[1772122250486,0.57250231,2022.1,2021.1,0.53070572]
[1772122251191,0.81977231,2022.1,2021.1,0.53070572]
[1772122251483,0.57250231,2022.0,2021.1,0.53070572]
[1772122253286,0.00542398,2022.1,2021.1,0.53070572]
[1772122253482,0.00542398,2022.1,2021.3,0.53070572]
[1772122254382,12.61380097,2023.0,2021.1,8.31354941]
[1772122254383,0.57250231,2022.7,2021.5,0.53070572]
[1772122254683,4.34623251,2022.9,2021.5,0.53070572]
[1772122254684,0.5,2022.2,2021.5,0.53070572]
[1772122254890,0.57250231,2022.8,2021.7,0.53070572]
[1772122255078,0.56926948,2023.0,2021.7,0.53070572]
[1772122255683,0.56926948,2023.0,2021.9,0.53070572]
[1772122255684,0.57470122,2023.0,2021.9,0.53070572]
[1772122255884,0.00543174,2023.0,2022.0,0.53070572]
[1772122256086,0.81636948,2023.4,2022.1,0.53070572]
[1772122256383,0.57250231,2023.6,2022.1,0.53070572]
[1772122257186,0.57694187,2023.6,2022.3,0.53070572]
[1772122258283,0.00443956,2023.6,2022.5,0.53070572]
[1772122258588,0.00443956,2023.6,2022.6,0.53070572]
[1772122258784,0.00443956,2023.6,2022.8,0.53070572]
[1772122259687,0.57250231,2024.2,2022.9,0.53070572]
[1772122260283,0.57250231,2024.2,2023.1,0.53070572]
[1772122260680,0.57645561,2024.2,2023.1,0.53070572]
[1772122261079,0.24702,2024.0,2022.8,0.53070572]
[1772122261281,0.57250231,2024.1,2022.8,0.53070572]
[1772122261485,0.57250231,2024.1,2022.9,0.53070572]
[1772122261685,0.57250231,2024.0,2022.9,0.53070572]
[1772122261988,0.57250231,2023.6,2022.7,0.53070572]
[1772122262486,0.57250231,2023.5,2022.5,0.53070572]
[1772122263389,1.84854941,2023.6,2021.7,0.00372142]
[1772122263390,0.56788003,2023.2,2022.3,0.53070572]
[1772122263587,0.56788003,2023.2,2022.1,0.53070572]
[1772122263889,1.84854941,2023.3,2021.7,6.46972142]
[1772122263890,0.56788003,2023.0,2021.9,0.53070572]
[1772122264086,0.56788003,2022.9,2021.9,0.53070572]
[1772122264983,2.41642944,2022.9,2021.9,0.53070572]
[1772122265190,0.24713,2023.1,2021.7,0.00372142]
[1772122265191,2.41356607,2022.6,2021.7,0.00372142]
[1772122265491,0.56501666,2022.5,2021.7,0.53442714]
[1772122265691,0.56501666,2022.5,2021.7,0.00372142]
[1772122266093,0.56501666,2022.5,2021.7,0.53442714]
[1772122266685,0.00476337,2022.6,2021.7,0.53442714]
[1772122266881,2.09566941,2023.2,2021.7,0.53442714]
[1772122267393,14.63816941,2023.8,2021.8,0.58145486]
[1772122267687,0.24713,2023.1,2022.0,0.58145486]
[1772122267889,0.25298558,2023.1,2022.0,0.58145486]
[1772122268991,1.84854941,2022.9,2021.8,6.465]
[1772122269291,1.84854941,2022.9,2021.7,0.58492091]
[1772122269292,0.24717,2022.8,2021.7,0.58492091]
[1772122270490,40.8,2022.9,2021.7,0.58492091]
[1772122270691,0.00585558,2023.1,2021.7,0.58492091]
[1772122271090,40.80585558,2023.1,2021.7,0.58492091]
[1772122271696,0.00585558,2023.1,2021.7,0.58492091]
[1772122272106,0.00585558,2023.1,2021.9,0.58203469]
[1772122272397,0.00585558,2023.1,2022.1,0.58203469]
[1772122273194,0.00585558,2023.1,2022.3,0.58404517]
[1772122273795,6.466,2023.7,2022.3,0.58404517]
[1772122274894,0.0050119,2023.7,2022.5,0.58111738]
[1772122275402,0.00400068,2023.6,2022.5,0.58111738]
[1772122275595,0.00400068,2023.4,2022.5,0.58111738]
[1772122276594,0.24711,2023.3,2022.1,0.57891153]
[1772122276799,0.00400068,2023.1,2022.1,0.57891153]
[1772122277000,0.00357273,2023.0,2022.1,0.57891153]
[1772122277796,6.466,2023.4,2022.1,0.57891153]
[1772122277997,6.46957273,2023.4,2022.2,0.5791255]
[1772122278198,0.00357273,2023.3,2022.2,0.5791255]
[1772122278405,0.00357273,2023.2,2022.2,0.5791255]
[1772122278998,0.00357273,2023.6,2022.2,0.5791255]
[1772122279302,0.0050119,2023.7,2022.6,0.58172339]
[1772122279609,0.0050119,2023.7,2022.8,0.58172339]
[1772122282200,0.24707,2023.6,2022.6,0.58578045]
[1772122283803,0.24707,2023.6,2022.4,0.58584065]
[1772122284004,0.2471,2023.4,2022.4,0.58584065]
[1772122286710,16.51479566,2023.7,2022.4,0.58584065]
[1772122286711,0.0050119,2023.7,2022.4,0.58584065]
[1772122287710,0.0050119,2023.7,2022.6,0.59275785]
[1772122288410,40.8,2024.3,2022.8,0.59275785]
[1772122288608,0.24699,2024.4,2023.0,0.5902519]
[1772122288804,6.466,2024.7,2023.2,0.5902519]
[1772122289005,46.8994427,2024.6,2023.2,0.5902519]
[1772122289206,6.466,2024.7,2023.2,0.5902519]
[1772122289504,4.34706998,2024.9,2023.4,0.59093437]
[1772122289505,0.24692,2024.9,2023.4,0.59093437]
[1772122289703,0.00485865,2024.7,2023.4,0.59093437]
[1772122289902,0.24686,2025.4,2023.6,0.59093437]
[1772122290104,0.24686,2025.4,2023.8,0.59093437]
[1772122290306,0.24688,2025.2,2023.8,0.59093437]
[1772122291007,0.25103115,2025.2,2023.8,0.59093437]
[1772122291208,0.08597783,2025.0,2023.8,0.59093437]
[1772122291514,15.05805556,2024.9,2023.8,0.59093437]
[1772122291713,0.4231418,2024.8,2023.8,0.59093437]
[1772122291906,8.56069376,2024.9,2023.8,0.59093437]
[1772122292514,0.24697,2024.5,2023.2,0.59106966]
[1772122293912,6.467,2024.9,2023.2,0.59106966]
[1772122294419,0.24693,2024.8,2023.2,0.59106966]
[1772122294618,5.92679449,2024.8,2023.2,0.59106966]
[1772122294808,12.00133449,2024.8,2023.2,0.59106966]
[1772122295013,0.24698,2024.4,2023.2,0.59106966]
[1772122295413,0.247,2024.2,2023.2,0.59106966]
[1772122296012,40.8,2024.1,2023.2,0.59106966]
[1772122296220,0.24702,2024.0,2023.1,0.00402997]
[1772122296415,0.24702,2024.0,2023.1,0.59180055]
[1772122297621,0.24715213,2023.5,2022.7,0.55803356]
[1772122298525,0.25167474,2023.5,2022.7,0.56163943]
[1772122299321,0.24677223,2023.3,2022.7,0.00360587]
[1772122299721,0.24677223,2023.3,2022.5,0.55803356]
[1772122300728,0.24677223,2023.3,2022.5,0.56338615]
[1772122301519,0.2471,2023.4,2022.5,0.56338615]
[1772122302224,0.00452261,2023.5,2022.5,0.56338615]
[1772122302623,0.25113938,2023.5,2022.5,0.56338615]
[1772122303121,0.24402213,2023.4,2022.5,0.56338615]
[1772122303321,0.24402213,2023.2,2022.5,0.56338615]
[1772122303726,0.24711,2023.3,2022.5,0.56338615]
[1772122305830,0.26278517,2023.2,2022.5,0.56338615]
[1772122306122,0.54385424,2023.1,2022.3,0.54356834]
[1772122306930,0.54385424,2022.9,2022.3,0.00459591]
[1772122307526,0.79100424,2023.0,2022.3,0.54816425]
[1772122307726,0.54385424,2023.2,2022.3,0.54816425]
[1772122307930,7.01085424,2023.2,2022.3,0.54816425]
[1772122309633,6.467,2023.2,2022.3,0.54816425]
[1772122309831,0.00452261,2023.5,2022.3,0.54816425]
[1772122310941,0.00452261,2023.5,2022.5,0.54356834]
[1772122312136,0.00452261,2023.5,2022.7,0.54356834]
[1772122312335,0.54385424,2023.9,2022.7,0.54356834]
[1772122313338,0.54928806,2023.9,2022.7,0.54356834]
[1772122314139,0.00543382,2023.9,2022.9,0.54356834]
[1772122314344,0.54385424,2024.3,2023.1,0.54356834]
[1772122314835,47.81085424,2024.6,2023.3,0.54356834]
[1772122315038,0.54385424,2024.5,2023.5,0.54356834]
[1772122315437,0.54385424,2024.3,2022.9,0.54356834]
[1772122316337,0.247,2024.2,2022.9,0.54356834]
[1772122316543,0.54385424,2024.1,2022.9,0.54356834]
[1772122316739,0.54385424,2023.9,2022.9,0.54356834]
[1772122318244,0.54385424,2024.4,2022.9,0.54356834]
[1772122319046,0.54385424,2024.2,2022.9,0.54356834]
[1772122320544,0.00449702,2024.5,2023.1,0.54356834]
[1772122320545,0.54385424,2024.4,2023.1,0.54356834]
[1772122320745,0.00449702,2024.5,2023.3,0.54356834]
[1772122320746,0.54835126,2024.5,2023.3,0.54356834]
[1772122320942,0.54385424,2025.3,2023.9,0.54356834]
[1772122321137,0.54385424,2025.3,2024.1,0.54356834]
[1772122321846,0.54877338,2025.3,2024.1,0.54901328]
[1772122322352,0.00491914,2025.3,2024.1,0.54901328]
[1772122322753,0.54877338,2025.3,2024.1,0.54901328]
[1772122323054,0.54385424,2025.1,2024.1,0.54901328]
[1772122323246,0.54385424,2024.9,2024.1,0.54901328]
[1772122323749,0.2469,2025.0,2024.1,0.54901328]
[1772122323951,0.54877338,2025.3,2024.1,0.54901328]
[1772122324746,0.00491914,2025.3,2024.1,0.79602328]
[1772122324951,0.00491914,2025.3,2024.2,0.54356834]
[1772122325452,0.54385424,2025.8,2024.4,0.54356834]
[1772122325751,0.54385424,2025.8,2024.6,0.54356834]
[1772122326345,0.54385424,2025.6,2024.6,0.54356834]
[1772122326853,0.54385424,2025.2,2024.2,0.54356834]
[1772122327550,0.24686,2025.3,2024.2,0.54356834]
[1772122327747,0.25097007,2025.8,2024.4,0.54356834]
[1772122327958,0.54385424,2025.7,2024.4,0.54356834]
[1772122328652,0.00416007,2025.8,2024.6,0.54356834]
[1772122328849,0.54801431,2025.8,2024.6,0.54356834]
[1772122330452,0.00416007,2025.8,2024.6,0.54356834]
[1772122331546,0.56152089,2026.5,2024.8,0.5648071]
[1772122331745,0.56152089,2026.5,2024.3,6.07596]
[1772122331746,0.56152089,2026.3,2025.0,0.5648071]
[1772122331954,0.56152089,2026.1,2025.0,0.5648071]
[1772122332554,0.56537279,2026.1,2025.0,0.5648071]
[1772122332756,0.56537279,2026.1,2024.7,0.5648071]
[1772122332757,0.56152089,2025.9,2024.7,0.5648071]
[1772122333551,0.56152089,2025.7,2024.7,0.5648071]
[1772122334352,0.56152089,2025.3,2024.5,0.5648071]
[1772122335061,0.56152089,2025.8,2024.5,0.5648071]
[1772122336158,0.2468,2025.9,2024.5,0.5648071]
[1772122336159,0.56152089,2025.6,2024.5,0.5648071]
[1772122336957,0.56152089,2025.2,2024.3,0.5648071]
[1772122337262,0.56152089,2025.0,2024.2,0.5648071]
[1772122337859,0.56152089,2024.8,2024.1,0.00544494]
[1772122338362,0.56152089,2025.3,2024.1,0.57025204]
[1772122340260,6.07123,2025.9,2024.2,0.5648071]
[1772122340261,0.56152089,2025.6,2024.2,0.5648071]
[1772122341360,0.56152089,2025.6,2024.4,0.5648071]
[1772122341560,0.56152089,2025.8,2024.5,0.5648071]
[1772122342861,0.56537279,2026.1,2024.7,0.5648071]
[1772122343461,0.0038519,2026.1,2024.8,0.24693]
[1772122343765,0.56537279,2026.1,2024.9,0.5648071]
[1772122343962,0.0038519,2026.1,2025.1,2.40888602]
[1772122344266,0.0038519,2026.1,2025.3,0.5648071]
[1772122344663,0.56152089,2026.8,2025.3,0.5648071]
[1772122345056,0.24667,2026.9,2025.5,0.5648071]
[1772122345267,8.05959059,2027.7,2025.8,0.5648071]
[1772122345268,0.56152089,2027.0,2025.8,0.5648071]
[1772122345863,0.56738574,2027.0,2025.8,0.57036701]
[1772122346166,0.00586485,2027.0,2026.0,0.5648071]
[1772122347065,0.00586485,2027.0,2026.2,0.5648071]
[1772122347263,0.56738574,2027.0,2026.2,0.5648071]
[1772122347464,0.00586485,2027.0,2026.2,0.5648071]
[1772122348063,0.56738574,2027.0,2026.2,0.5648071]
[1772122349065,0.56738574,2027.0,2025.9,0.5648071]
[1772122349563,0.56152089,2026.9,2025.9,0.5648071]
[1772122349765,0.56152089,2026.5,2025.9,0.5648071]
[1772122350570,0.56152089,2026.5,2025.8,0.00555991]
[1772122351567,0.56152089,2026.1,2025.3,0.5648071]
[1772122352572,0.56152089,2026.1,2025.3,0.00538686]
[1772122352962,0.56152089,2025.9,2025.0,0.5648071]
[1772122353167,0.56152089,2025.7,2025.0,0.5648071]
[1772122353568,0.56152089,2025.5,2024.7,0.5648071]
[1772122353766,12.53803,2026.3,2024.7,0.5648071]
[1772122353767,0.56152089,2025.7,2024.7,0.5648071]
[1772122354169,0.56562182,2025.7,2024.7,0.56882622]
[1772122355073,0.00410093,2025.7,2024.7,0.56882622]
[1772122356672,0.00410093,2025.7,2024.8,0.5648071]
[1772122357175,0.56152089,2026.2,2025.0,0.5648071]
[1772122357771,0.54170738,2026.4,2025.0,0.5648071]
[1772122357971,0.24674,2026.3,2025.0,0.5648071]
[1772122358175,0.54170738,2026.2,2025.0,0.5648071]
[1772122358876,0.251004,2026.3,2025.0,0.5648071]
[1772122359069,0.004264,2026.3,2025.2,0.57599916]
[1772122360673,0.5407778,2026.9,2025.5,0.55673071]
[1772122360871,0.5407778,2026.8,2025.6,0.55673071]
[1772122361876,0.54580355,2026.8,2025.6,0.55673071]
[1772122363171,0.7875478,2026.1,2025.1,0.55673071]
[1772122363374,0.5407778,2026.0,2025.1,0.55673071]
[1772122364771,0.5407778,2025.8,2024.9,0.55673071]
[1772122364976,0.5407778,2025.6,2024.9,0.55673071]
[1772122367180,0.5407778,2026.1,2024.9,0.55673071]
[1772122369673,0.5407778,2025.9,2024.9,0.55673071]
[1772122371376,0.24678,2026.0,2024.7,0.56074983]
[1772122371377,0.5407778,2025.7,2024.7,0.56074983]
[1772122371675,0.5407778,2025.5,2024.7,0.56074983]
[1772122373686,0.5407778,2025.7,2024.7,0.56074983]
[1772122374382,0.5407778,2026.0,2024.9,0.55673071]
[1772122376586,6.468,2026.4,2024.9,0.55673071]
[1772122376587,0.5407778,2025.8,2024.9,0.55673071]
[1772122376790,0.5407778,2025.6,2024.9,0.55673071]
[1772122377189,0.5407778,2025.6,2024.7,0.56074983]
[1772122378189,0.5407778,2025.8,2024.7,0.56074983]
[1772122378693,0.5407778,2026.1,2024.8,0.55673071]
[1772122379094,0.24676,2026.2,2024.8,0.55673071]
[1772122379095,0.5407778,2025.9,2024.8,0.55673071]
[1772122379300,0.5407778,2025.7,2024.8,0.55673071]
[1772122379994,0.2468,2025.8,2024.8,0.55673071]
[1772122380390,0.7875778,2025.8,2024.8,0.55673071]
[1772122380691,0.5407778,2025.5,2024.7,0.00401912]
[1772122380896,0.5407778,2025.3,2024.7,0.00401912]
[1772122381094,0.5407778,2025.3,2024.4,0.55673071]
[1772122381893,0.5407778,2025.0,2023.9,0.55673071]
[1772122382399,0.54637907,2025.0,2023.9,0.56091898]
[1772122382701,0.5407778,2024.8,2023.9,0.00418827]
[1772122382999,0.5407778,2024.8,2023.9,0.56091898]
[1772122384496,0.5407778,2024.8,2023.9,0.00418827]
[1772122384698,0.5407778,2024.4,2023.3,0.55673071]
[1772122384999,0.5407778,2024.4,2023.1,0.55673071]
[1772122385398,0.5407778,2024.2,2023.1,0.55673071]
[1772122385702,0.5407778,2024.0,2023.1,0.55673071]
[1772122386004,0.5407778,2024.0,2023.1,0.56151741]
[1772122386202,0.5407778,2023.9,2023.1,0.0047867]
[1772122386601,0.5407778,2023.9,2023.1,0.56151741]
[1772122388300,0.5407778,2023.9,2023.1,0.0047867]
[1772122389005,0.5407778,2023.9,2023.1,0.56151741]
[1772122389399,0.5407778,2024.2,2023.1,0.56151741]
[1772122390306,0.55666455,2024.5,2023.2,0.57338711]
[1772122391200,6.468,2024.9,2023.2,0.57338711]
[1772122391201,0.55666455,2024.7,2023.3,0.57338711]
[1772122391407,0.55666455,2024.7,2023.5,0.57338711]
[1772122391703,7.02466455,2024.9,2023.6,0.57338711]
[1772122392502,0.55666455,2024.9,2023.6,0.57338711]
[1772122393210,0.00560127,2025.0,2023.8,0.57338711]
[1772122393504,0.00560127,2025.0,2023.9,0.57338711]
[1772122393904,0.56226582,2025.0,2023.9,0.57338711]
[1772122395699,0.00560127,2025.0,2024.1,0.57338711]
[1772122396702,0.56226582,2025.0,2024.1,0.57338711]
[1772122397314,0.55666455,2024.6,2023.8,0.57338711]
[1772122399110,0.55666455,2024.6,2023.4,0.57338711]
[1772122399611,0.55666455,2024.4,2023.4,0.57338711]
[1772122399916,0.55666455,2024.4,2023.2,0.57338711]
[1772122399917,0.55666455,2024.2,2023.2,0.57338711]
[1772122401615,0.55666455,2024.7,2023.2,0.57338711]
[1772122401805,0.55666455,2024.3,2023.2,0.57338711]
[1772122402005,0.55666455,2024.1,2023.1,0.0047867]
[1772122402210,0.55666455,2023.9,2023.1,0.57817381]
[1772122402611,0.55666455,2023.9,2023.1,0.0047867]
[1772122402913,0.55666455,2023.7,2023.1,0.0047867]
[1772122403706,0.55666455,2023.7,2023.1,0.57817381]
[1772122404017,0.55666455,2023.9,2023.1,0.57817381]
[1772122404819,0.55666455,2024.1,2023.1,0.57817381]
[1772122406313,0.55666455,2024.3,2023.1,0.57817381]
[1772122407221,0.55666455,2024.1,2023.1,0.57817381]
[1772122409519,0.55666455,2023.9,2023.1,0.57817381]
[1772122409819,0.55666455,2023.9,2023.1,0.0047867]
[1772122410725,0.55666455,2023.9,2023.1,0.57817381]
[1772122411026,0.55666455,2024.4,2023.1,0.57817381]
[1772122411228,0.55666455,2024.2,2023.1,0.57817381]
[1772122415523,0.55666455,2024.7,2023.3,0.57338711]
[1772122415919,0.55666455,2024.6,2023.5,0.57338711]
[1772122416930,0.55666455,2023.9,2023.1,0.57817381]
[1772122417127,0.55666455,2023.7,2023.1,0.57817381]
[1772122417428,0.55666455,2023.5,2022.7,0.57338711]
[1772122417631,0.55666455,2023.5,2022.5,0.53158714]
[1772122418531,0.5622102,2023.5,2022.5,0.53590153]
[1772122421331,0.57636616,2023.3,2022.5,0.00431439]
[1772122421537,0.57636616,2023.3,2022.5,0.53985501]
[1772122422733,0.58191181,2023.5,2022.5,0.53985501]
[1772122423337,0.00554565,2023.5,2022.5,0.53985501]
[1772122424034,0.00554565,2023.5,2022.7,0.53554062]
[1772122424436,0.57636616,2023.9,2022.7,0.53554062]
[1772122424637,0.57636616,2023.7,2022.7,0.53554062]
[1772122425429,0.58126405,2023.7,2022.7,0.53554062]
[1772122427040,0.00489789,2023.7,2022.9,0.53554062]
[1772122427434,0.58126405,2023.7,2022.9,0.53554062]
[1772122427735,0.00489789,2023.7,2022.9,0.53554062]
[1772122428339,45.16679903,2024.3,2023.1,0.53554062]
[1772122428340,0.82336616,2024.3,2023.1,0.53554062]
[1772122428539,0.57636616,2024.2,2023.1,0.53554062]
[1772122429437,0.58015791,2024.2,2023.1,0.53554062]
[1772122430642,0.00379175,2024.2,2023.3,0.53554062]
[1772122431135,0.82330616,2024.8,2023.5,0.53554062]
[1772122431336,0.57636616,2024.7,2023.5,0.53554062]
[1772122431533,0.57636616,2024.5,2023.5,0.53554062]
[1772122432341,0.58082402,2024.5,2023.5,0.53554062]
[1772122433035,0.00445786,2024.5,2023.5,0.53554062]
[1772122433835,0.00445786,2024.5,2023.7,0.53554062]
[1772122435537,0.58082402,2024.5,2023.7,0.53554062]
[1772122437941,0.00445786,2024.5,2023.7,0.53554062]
[1772122438840,0.57636616,2024.9,2023.7,0.53554062]
[1772122439741,0.57636616,2024.9,2023.9,0.53554062]
[1772122439947,0.00533351,2024.9,2024.1,0.53554062]
[1772122440344,0.00533351,2024.9,2024.1,0.53985872]
[1772122441347,0.57636616,2024.8,2024.1,0.53985872]
[1772122443048,0.57636616,2024.6,2023.7,7.00454062]
[1772122443251,0.57636616,2024.4,2023.5,0.53554062]
[1772122443653,0.57636616,2024.2,2023.1,0.53554062]
[1772122444151,0.57636616,2024.2,2023.1,0.53939653]
[1772122444350,41.04694,2024.8,2023.3,0.53554062]
[1772122444351,0.57636616,2024.7,2023.3,0.53554062]
[1772122444653,0.57636616,2024.7,2023.5,0.53554062]
[1772122445254,40.80533351,2024.9,2023.2,5.41372027]
[1772122445255,0.00533351,2024.9,2023.7,0.53554062]
[1772122445554,0.58169967,2024.9,2023.7,0.53554062]
[1772122446855,0.57636616,2024.6,2023.7,0.53554062]